fUSD/lending_fUSD_20260701
["ID","MTS","AMOUNT","RATE_DAILY","PERIOD"]
[426818802,1782892232000,-428.55539786,0.00017064,2]
[426818859,1782892232000,-151.0,0.00018969,2]
[426818848,1782892232000,-598.93725398,0.00018533,2]
[426818864,1782892232000,-917.04,0.0001967,2]
[426818854,1782892232000,-151.39,0.00018969,2]
[426818808,1782892232000,-500.0,0.00017064,2]
[426818804,1782892232000,-500.0,0.00017064,2]
[426818812,1782892232000,-568.19993878,0.00017064,2]
[426818820,1782892232000,-500.0,0.00017064,2]
[426818824,1782892232000,-500.0,0.00017064,2]
[426818818,1782892232000,-500.0,0.00017064,2]
[426818810,1782892232000,-500.0,0.00017064,2]
[426818828,1782892232000,-500.0,0.00017064,2]
[426818826,1782892232000,-500.0,0.00017064,2]
[426818822,1782892232000,-500.0,0.00017064,2]
[426818837,1782892232000,-6089.0,0.00017069,2]
[426818832,1782892232000,-163.89,0.00017067,2]
[426818839,1782892232000,-3345.58832868,0.00017398,2]
[426818835,1782892232000,-500.0,0.00017069,2]
[426818841,1782892232000,-9200.62475932,0.00017398,2]
[426818843,1782892232000,-321.72293738,0.00017554,2]
[426818844,1782892232000,-288.0,0.00017741,2]
[426818850,1782892232000,-1915.98787075,0.00018533,2]
[426818851,1782892232000,-292.22,0.00018969,2]
[426818830,1782892232000,-529.93865428,0.00017064,2]
[426818847,1782892232000,-176.46,0.00018533,2]
[426818875,1782892233000,-1.7782511,0.00019867,2]
[426818872,1782892233000,-85.6017489,0.00019791,2]
[426818871,1782892233000,-99.7282511,0.00019791,2]
[426818874,1782892233000,-160.0,0.0001981,2]
[426818873,1782892233000,-252.62,0.00019795,2]
[426818876,1782892233000,-764.92987787,0.00019867,2]
[426818879,1782892233000,-3367.5735896,0.00019867,2]
[426818880,1782892233000,-200.0,0.00019903,2]
[426818878,1782892233000,-4888.71828143,0.00019867,2]
[426818881,1782892233000,-4477.4264104,0.00019919,2]
[426818877,1782892233000,-977.0,0.00019867,2]
[426818921,1782892238000,-185.71,0.00020155,2]
[426818923,1782892238000,-2337.0,0.00020234,2]
[426818922,1782892238000,-1286.44185964,0.000202,2]
[426818911,1782892238000,-177.34,0.00019994,2]
[426818913,1782892238000,-1286.44185964,0.0002,2]
[426818912,1782892238000,-265.39,0.00019994,2]
[426818920,1782892238000,-500.0,0.00020137,2]
[426818917,1782892238000,-3651.0,0.00020069,2]
[426818916,1782892238000,-6089.0,0.00020069,2]
[426818914,1782892238000,-214.63,0.0002,2]
[426818918,1782892238000,-9335.9,0.00020108,2]
[426818915,1782892238000,-155.0,0.0002,2]
[426818919,1782892238000,-152.0,0.00020118,5]
[426818908,1782892238000,-336.22096291,0.00017069,2]
[426818906,1782892238000,-697.59699283,0.00017069,2]
[426818909,1782892238000,-959.09342586,0.00017069,2]
[426818907,1782892238000,-564.0886184,0.00017069,2]
[426818905,1782892238000,-1094.0,0.00017069,2]
[426818925,1782892238000,-1286.44185964,0.000204,2]
[426818910,1782892238000,-2229.16031356,0.00019919,2]
[426818926,1782892238000,-165.2,0.00020484,2]
[426818928,1782892238000,-206.44571316,0.00020598,2]
[426818924,1782892238000,-151.0,0.00020381,2]
[426818946,1782892238000,-152.0,0.00021167,6]
[426818945,1782892238000,-522.79710078,0.00021064,2]
[426818943,1782892238000,-352.285,0.00021,2]
[426818944,1782892238000,-522.79710078,0.0002104,2]
[426818947,1782892238000,-596.97823616,0.000212,2]
[426818941,1782892238000,-1364.54785336,0.00021,2]
[426818942,1782892238000,-155.0,0.00021,2]
[426818937,1782892238000,-200.81213833,0.00021,2]
[426818938,1782892238000,-93.5711471,0.00021,2]
[426818932,1782892238000,-1286.44185964,0.000208,2]
[426818940,1782892238000,-322.21350809,0.00021,2]
[426818935,1782892238000,-1006.06407373,0.00021,2]
[426818933,1782892238000,-200.0,0.00020832,2]
[426818936,1782892238000,-210.65142877,0.00021,2]
[426818934,1782892238000,-573.60804024,0.00021,2]
[426818927,1782892238000,-151.000007,0.00020548,2]
[426818930,1782892238000,-1733.887,0.0002072,2]
[426818931,1782892238000,-329.03,0.00020797,2]
[426818929,1782892238000,-1286.44185964,0.000206,2]
[426818939,1782892238000,-206.4288529,0.00021,2]
[426818954,1782892240000,-220.35545317,0.00021757,2]
[426818949,1782892240000,-1089.78312529,0.000212,2]
[426818953,1782892240000,-1686.76136145,0.000216,2]
[426818952,1782892240000,-300.0,0.000215,2]
[426818955,1782892240000,-2699.27188851,0.00021757,2]
[426818950,1782892240000,-1022.35,0.0002137,2]
[426818956,1782892240000,-519.56113632,0.00021757,2]
[426818951,1782892240000,-1686.76136145,0.000214,2]
[426819001,1782892243000,-151.0,0.0002193,2]
[426819009,1782892243000,-151.0,0.0002193,2]
[426819008,1782892243000,-151.0,0.0002193,2]
[426819011,1782892243000,-151.0,0.0002193,2]
[426819012,1782892243000,-151.0,0.0002193,2]
[426819010,1782892243000,-330.50615756,0.0002193,2]
[426819013,1782892243000,-151.0,0.0002193,2]
[426819017,1782892243000,-151.0,0.0002193,2]
[426819018,1782892243000,-151.0,0.0002193,2]
[426819015,1782892243000,-151.0,0.0002193,2]
[426819023,1782892243000,-151.0,0.0002193,2]
[426819014,1782892243000,-151.0,0.0002193,2]
[426819019,1782892243000,-151.0,0.0002193,2]
[426819020,1782892243000,-151.0,0.0002193,2]
[426819005,1782892243000,-151.0,0.0002193,2]
[426819016,1782892243000,-151.0,0.0002193,2]
[426818999,1782892243000,-500.0,0.0002193,2]
[426818994,1782892243000,-600.0,0.00021918,8]
[426818998,1782892243000,-175.20556228,0.0002193,2]
[426819022,1782892243000,-151.0,0.0002193,2]
[426818987,1782892243000,-1988.581522,0.00021757,2]
[426818995,1782892243000,-330.3,0.00021918,8]
[426818991,1782892243000,-5000.0,0.00021918,2]
[426818990,1782892243000,-6936.31732239,0.000219,2]
[426818992,1782892243000,-600.0,0.00021918,8]
[426818989,1782892243000,-1686.76136145,0.000219,2]
[426819006,1782892243000,-151.0,0.0002193,2]
[426818993,1782892243000,-600.0,0.00021918,8]
[426818997,1782892243000,-200.0,0.00021918,2]
[426818996,1782892243000,-200.0,0.00021918,2]
[426819007,1782892243000,-151.0,0.0002193,2]
[426819004,1782892243000,-151.0,0.0002193,2]
[426819002,1782892243000,-215.58700553,0.0002193,2]
[426819000,1782892243000,-3004.03666386,0.0002193,2]
[426819003,1782892243000,-151.0,0.0002193,2]
[426818988,1782892243000,-160.0,0.0002184,2]
[426819025,1782892243000,-300.0,0.00022,2]
[426819060,1782892243000,-3004.03666386,0.00023026,2]
[426819024,1782892243000,-151.0,0.00021985,2]
[426819048,1782892243000,-9999.99,0.00022562,2]
[426819042,1782892243000,-3004.03666386,0.00022478,2]
[426819050,1782892243000,-160.0,0.000226,3]
[426819052,1782892243000,-3004.03666386,0.00022752,2]
[426819047,1782892243000,-150.99,0.00022562,2]
[426819043,1782892243000,-330.50615756,0.00022478,2]
[426819055,1782892243000,-300.0,0.00023,2]
[426819054,1782892243000,-9450.1596391,0.0002299,2]
[426819056,1782892243000,-15113.61180934,0.00023,2]
[426819058,1782892243000,-175.0,0.00023,7]
[426819057,1782892243000,-822.0,0.00023,2]
[426819061,1782892243000,-330.50615756,0.00023026,2]
[426819053,1782892243000,-6936.31732236,0.00022967,2]
[426819059,1782892243000,-537.6845,0.00023026,2]
[426819028,1782892243000,-208.27442596,0.0002204,2]
[426819046,1782892243000,-629.83,0.00022562,2]
[426819044,1782892243000,-200.0,0.00022509,2]
[426819049,1782892243000,-207.69931163,0.0002259,2]
[426819045,1782892243000,-458.93,0.00022562,2]
[426819021,1782892243000,-151.0,0.0002193,2]
[426819026,1782892243000,-819.37534968,0.00022,7]
[426819029,1782892243000,-530.89454282,0.000221,7]
[426819027,1782892243000,-170.81862332,0.00022,2]
[426819031,1782892243000,-3004.03666386,0.00022204,2]
[426819051,1782892243000,-1274.0,0.000226,3]
[426819034,1782892243000,-151.0,0.00022256,2]
[426819030,1782892243000,-331.0,0.0002216,2]
[426819035,1782892243000,-151.0,0.00022258,2]
[426819039,1782892243000,-1082.7,0.00022466,2]
[426819037,1782892243000,-6936.31732236,0.00022433,2]
[426819032,1782892243000,-152.0,0.00022217,7]
[426819041,1782892243000,-518.5,0.00022478,2]
[426819040,1782892243000,-1960.3,0.00022466,2]
[426819036,1782892243000,-151.0,0.00022353,2]
[426819038,1782892243000,-282.12,0.00022466,2]
[426819033,1782892243000,-151.0,0.00022256,2]
[426819087,1782892244000,-3004.03666386,0.000233,2]
[426819094,1782892244000,-310.65327536,0.00023432,2]
[426819100,1782892244000,-162.44414301,0.00023432,2]
[426819096,1782892244000,-260.96827511,0.00023432,2]
[426819080,1782892244000,-150.0,0.000232,2]
[426819098,1782892244000,-171.22044866,0.00023432,2]
[426819086,1782892244000,-152.0,0.00023267,8]
[426819101,1782892244000,-172.97274021,0.00023432,2]
[426819093,1782892244000,-166.87322862,0.00023432,2]
[426819099,1782892244000,-156.75526731,0.00023432,2]
[426819108,1782892244000,-181.17808073,0.00023477,2]
[426819097,1782892244000,-330.12700645,0.00023432,2]
[426819092,1782892244000,-1105.04754621,0.00023432,2]
[426819095,1782892244000,-354.64993063,0.00023432,2]
[426819104,1782892244000,-171.92,0.00023454,2]
[426819106,1782892244000,-202.3543064,0.00023477,2]
[426819103,1782892244000,-151.01438848,0.00023454,2]
[426819105,1782892244000,-150.26958164,0.00023456,2]
[426819110,1782892244000,-164.85883288,0.00023477,2]
[426819083,1782892244000,-25494.4408,0.00023233,2]
[426819102,1782892244000,-159.70624979,0.00023453,2]
[426819079,1782892244000,-150.0,0.000231,2]
[426819068,1782892244000,-151.0,0.00023058,2]
[426819085,1782892244000,-1463.42725287,0.00023258,2]
[426819112,1782892244000,-166.07241082,0.00023478,2]
[426819063,1782892244000,-152.86,0.00023058,2]
[426819064,1782892244000,-151.98,0.00023058,2]
[426819062,1782892244000,-2000.0,0.00023058,2]
[426819075,1782892244000,-3651.0,0.00023069,2]
[426819067,1782892244000,-200.66,0.00023058,2]
[426819077,1782892244000,-185.33,0.00023078,2]
[426819066,1782892244000,-151.0,0.00023058,2]
[426819065,1782892244000,-151.0,0.00023058,2]
[426819073,1782892244000,-6089.0,0.00023069,2]
[426819078,1782892244000,-151.65,0.0002308,2]
[426819076,1782892244000,-151.0,0.00023078,2]
[426819071,1782892244000,-151.0,0.00023058,2]
[426819070,1782892244000,-151.0,0.00023058,2]
[426819069,1782892244000,-151.0,0.00023058,2]
[426819088,1782892244000,-150.0,0.000233,2]
[426819082,1782892244000,-500.0,0.00023233,2]
[426819089,1782892244000,-15113.61180934,0.00023333,2]
[426819081,1782892244000,-160.0,0.00023217,2]
[426819090,1782892244000,-150.0,0.000234,2]
[426819084,1782892244000,-200.0,0.00023249,2]
[426819091,1782892244000,-167.33236976,0.00023432,2]
[426819109,1782892244000,-203.51876525,0.00023477,2]
[426819150,1782892244000,-2799.4385355,0.00023911,2]
[426819111,1782892244000,-169.60476426,0.00023478,2]
[426819137,1782892244000,-15113.61180934,0.00023667,2]
[426819138,1782892244000,-1463.42725284,0.0002375,2]
[426819147,1782892244000,-151.0,0.0002388,2]
[426819142,1782892244000,-151.0,0.0002388,2]
[426819139,1782892244000,-216.66345934,0.00023781,2]
[426819140,1782892244000,-3004.03666386,0.00023848,2]
[426819146,1782892244000,-151.0,0.0002388,2]
[426819143,1782892244000,-482.47,0.0002388,2]
[426819145,1782892244000,-459.94,0.0002388,2]
[426819144,1782892244000,-151.0,0.0002388,2]
[426819148,1782892244000,-24601.17828549,0.000239,2]
[426819151,1782892244000,-160.0,0.0002396,3]
[426819152,1782892244000,-634.28008454,0.00023989,2]
[426819153,1782892244000,-200.0,0.00023989,2]
[426819155,1782892244000,-189.66944165,0.00023997,2]
[426819158,1782892244000,-60279.63905276,0.00024,2]
[426819156,1782892244000,-300.0,0.00024,2]
[426819149,1782892244000,-500.0,0.00023909,2]
[426819154,1782892244000,-1747.0,0.00023997,5]
[426819107,1782892244000,-161.11009456,0.00023477,2]
[426819159,1782892244000,-3074.88970174,0.00024,2]
[426819141,1782892244000,-185.2,0.0002388,2]
[426819157,1782892244000,-15113.61180934,0.00024,2]
[426819134,1782892244000,-163.74671646,0.00023632,7]
[426819120,1782892244000,-1750.0,0.000235,5]
[426819114,1782892244000,-219.62168865,0.00023478,2]
[426819121,1782892244000,-150.0,0.000235,2]
[426819123,1782892244000,-6936.31732236,0.000235,2]
[426819125,1782892244000,-520.85062762,0.00023574,2]
[426819115,1782892244000,-169.83318008,0.00023478,2]
[426819118,1782892244000,-156.89788617,0.00023478,2]
[426819124,1782892244000,-1787.01,0.00023534,2]
[426819119,1782892244000,-160.0,0.00023499,2]
[426819122,1782892244000,-442.30223081,0.000235,2]
[426819113,1782892244000,-222.49197864,0.00023478,2]
[426819127,1782892244000,-330.50615756,0.00023574,2]
[426819116,1782892244000,-171.55910658,0.00023478,2]
[426819133,1782892244000,-167.62610221,0.0002363,2]
[426819131,1782892244000,-179.95483681,0.0002363,2]
[426819129,1782892244000,-192.09892821,0.0002363,2]
[426819128,1782892244000,-165.15334572,0.0002363,2]
[426819132,1782892244000,-178.76378714,0.0002363,2]
[426819136,1782892244000,-432.13017547,0.00023632,7]
[426819126,1782892244000,-3004.03666386,0.00023574,2]
[426819135,1782892244000,-288.86861736,0.00023632,7]
[426819130,1782892244000,-171.63871537,0.0002363,2]
[426819160,1782892246000,-212.84468049,0.00022434,2]
[426819161,1782892246000,-224.93749612,0.00024,2]
[426819162,1782892246000,-2747.87588171,0.00024,2]
[426819166,1782892312000,155.0,0.0002851,30]
[426819168,1782892509000,155.0,0.0002851,30]
[426819170,1782892510000,674.16,0.000299,30]
[426819169,1782892510000,155.0,0.0002951,30]
[426819181,1782893186000,150.0,8.1e-05,2]
[426819182,1782893226000,5004.44626009,0.00030136,30]
[426819183,1782893233000,160.0,0.0002851,30]
[426819184,1782893235000,160.0,0.0002951,30]
[426819185,1782893340000,2000.0,0.00030135,30]
[426819190,1782893341000,2000.0,0.00030126,120]
[426819189,1782893341000,2000.0,0.00030133,41]
[426819188,1782893341000,2000.0,0.00030133,40]
[426819187,1782893341000,2000.0,0.00030133,39]
[426819186,1782893341000,2000.0,0.00030133,37]
[426819191,1782893342000,2000.0,0.00028485,60]
[426819234,1782893432000,-152.0,0.00016732,2]
[426819242,1782893432000,-150.0,0.00016732,2]
[426819236,1782893432000,-150.0,0.00016732,2]
[426819246,1782893432000,-151.0,0.00016733,2]
[426819240,1782893432000,-150.0,0.00016732,2]
[426819238,1782893432000,-150.0,0.00016732,2]
[426819229,1782893432000,-150.0,0.00016732,2]
[426819247,1782893432000,-152.0,0.00016737,2]
[426819249,1782893432000,-152.0,0.00016753,2]
[426819244,1782893432000,-150.0,0.00016732,2]
[426819232,1782893432000,-153.0,0.00016732,2]
[426819221,1782893432000,-152.0,0.00016732,2]
[426819226,1782893432000,-151.0,0.00016732,2]
[426819223,1782893432000,-151.0,0.00016732,2]
[426819219,1782893432000,-153.0,0.00016732,2]
[426819209,1782893432000,-944.41582422,0.000165,2]
[426819213,1782893432000,-436.59,0.000165,2]
[426819211,1782893432000,-797.52301387,0.000165,2]
[426819215,1782893432000,-152.0,0.00016732,2]
[426819216,1782893432000,-152.0,0.00016732,2]
[426819206,1782893432000,-33.13116191,0.000165,2]
[426819201,1782893432000,-150.0,0.00014487,2]
[426819204,1782893432000,-899.0,0.00014935,2]
[426819262,1782893432000,-151.0,0.00017249,2]
[426819260,1782893432000,-151.0,0.00017249,2]
[426819269,1782893432000,-185.71,0.00020601,2]
[426819253,1782893432000,-6089.0,0.00016839,2]
[426819251,1782893432000,-152.0,0.00016815,2]
[426819282,1782893432000,-151.0,0.00021968,2]
[426819281,1782893432000,-151.0,0.00021968,2]
[426819278,1782893432000,-206.5490776,0.00021967,2]
[426819275,1782893432000,-200.0,0.00021918,2]
[426819274,1782893432000,-5000.0,0.00021918,2]
[426819276,1782893432000,-200.0,0.00021918,2]
[426819271,1782893432000,-4485.60226805,0.00021,2]
[426819270,1782893432000,-155.98,0.00020996,2]
[426819273,1782893432000,-150.99,0.00021757,2]
[426819272,1782893432000,-216.66345934,0.00021171,2]
[426819280,1782893432000,-1802.42199832,0.00021968,2]
[426819277,1782893432000,-571.05463849,0.00021967,2]
[426819268,1782893432000,-6089.0,0.00019839,2]
[426819279,1782893432000,-225.20605617,0.00021967,2]
[426819266,1782893432000,-230.7380396,0.00017528,2]
[426819261,1782893432000,-150.0,0.00017249,2]
[426819264,1782893432000,-500.0,0.00017528,2]
[426819263,1782893432000,-500.0,0.00017528,2]
[426819265,1782893432000,-500.0,0.00017528,2]
[426819255,1782893432000,-153.0,0.00017063,2]
[426819257,1782893432000,-150.0,0.00017249,2]
[426819258,1782893432000,-150.0,0.00017249,2]
[426819259,1782893432000,-151.0,0.00017249,2]
[426819267,1782893432000,-337.14833094,0.00017541,2]
[426819304,1782893433000,-1564.2195,0.0002249,2]
[426819293,1782893433000,-151.0,0.00021968,2]
[426819303,1782893433000,-200.0,0.00022286,2]
[426819292,1782893433000,-151.0,0.00021968,2]
[426819290,1782893433000,-151.0,0.00021968,2]
[426819301,1782893433000,-151.0,0.00021968,2]
[426819288,1782893433000,-151.0,0.00021968,2]
[426819285,1782893433000,-151.0,0.00021968,2]
[426819286,1782893433000,-151.0,0.00021968,2]
[426819284,1782893433000,-151.0,0.00021968,2]
[426819283,1782893433000,-151.0,0.00021968,2]
[426819287,1782893433000,-151.0,0.00021968,2]
[426819289,1782893433000,-264.40492605,0.00021968,2]
[426819305,1782893433000,-2000.0,0.0002249,2]
[426819291,1782893433000,-151.0,0.00021968,2]
[426819302,1782893433000,-1802.42199832,0.00022242,2]
[426819309,1782893433000,-4750.618,0.00022839,2]
[426819299,1782893433000,-151.0,0.00021968,2]
[426819314,1782893433000,-9912.40898308,0.00023272,2]
[426819315,1782893433000,-389.01559595,0.00023272,2]
[426819312,1782893433000,-264.40492605,0.00023064,2]
[426819311,1782893433000,-1802.42199832,0.00023064,2]
[426819310,1782893433000,-200.0,0.00023026,2]
[426819294,1782893433000,-151.0,0.00021968,2]
[426819308,1782893433000,-1802.42199832,0.0002279,2]
[426819313,1782893433000,-1387.109,0.00023069,2]
[426819295,1782893433000,-151.0,0.00021968,2]
[426819306,1782893433000,-1802.42199832,0.00022516,2]
[426819298,1782893433000,-151.0,0.00021968,2]
[426819296,1782893433000,-151.0,0.00021968,2]
[426819300,1782893433000,-151.0,0.00021968,2]
[426819297,1782893433000,-151.0,0.00021968,2]
[426819307,1782893433000,-264.40492605,0.00022516,2]
[426819344,1782893438000,-500.0,0.00016839,2]
[426819475,1782893440000,-160.0,0.00018851,2]
[426819473,1782893440000,-326.08495326,0.00016839,2]
[426819477,1782893440000,-3651.0,0.00022839,2]
[426819474,1782893440000,-2824.91504674,0.00016839,2]
[426819478,1782893440000,-7836.38495326,0.00023272,2]
[426819480,1782893440000,-1089.61509686,0.00023272,2]
[426819479,1782893440000,-827.77125043,0.00023272,2]
[426819476,1782893440000,-3651.0,0.00019839,2]
[426819496,1782893446000,-941.28379428,0.00023338,2]
[426819493,1782893446000,-935.0,0.00018356,2]
[426819495,1782893446000,-3343.62620572,0.00023272,2]
[426819494,1782893446000,-935.0,0.00021356,2]
[426819498,1782893447000,-156.3186741,0.00023423,2]
[426819497,1782893447000,-861.13820404,0.00023338,2]
[426819499,1782893447000,-181.66704354,0.00023423,2]
[426819500,1782893447000,-158.21219212,0.00023423,2]
[426819501,1782893447000,-21.54216116,0.00023423,2]
[426819503,1782893447000,-209.05669366,0.00023423,2]
[426819502,1782893447000,-202.12690652,0.00023423,2]
[426819504,1782893447000,-150.14603528,0.00023423,2]
[426819505,1782893447000,-182.62990723,0.00023423,2]
[426819507,1782893447000,-171.21809011,0.00023423,2]
[426819508,1782893447000,-64.17963086,0.00023423,2]
[426819509,1782893447000,-93.98676914,0.00023423,2]
[426819511,1782893447000,-158.57849639,0.00023423,2]
[426819512,1782893447000,-38.38540522,0.00023424,2]
[426819506,1782893447000,-171.55057518,0.00023423,2]
[426819510,1782893447000,-187.63932925,0.00023423,2]
[426819517,1782893524000,155.0,0.0002851,30]
[426819518,1782893526000,155.0,0.0002951,30]
[426819525,1782894243000,160.0,0.0002851,30]
[426819526,1782894245000,160.0,0.0002951,30]
[426819528,1782894553000,155.0,0.0002851,30]
[426819555,1782894631000,-1000.0,0.00018,2]
[426819554,1782894631000,-1000.0,0.00018,2]
[426819553,1782894631000,-1000.0,0.00018,2]
[426819547,1782894631000,-1000.0,0.00018,2]
[426819545,1782894631000,-350.01012774,0.00018,2]
[426819544,1782894631000,-571.8986363,0.00018,2]
[426819538,1782894631000,-151.0,0.00017999,2]
[426819542,1782894631000,-1000.0,0.00018,2]
[426819539,1782894631000,-151.0,0.00018,2]
[426819541,1782894631000,-177.75935072,0.00018,2]
[426819537,1782894631000,-151.0,0.00017999,2]
[426819543,1782894631000,-78.09123596,0.00018,2]
[426819540,1782894631000,-822.24064928,0.00018,2]
[426819534,1782894631000,-153.0,0.00017999,2]
[426819536,1782894631000,-192.30422662,0.00017999,2]
[426819533,1782894631000,-151.0,0.00017999,2]
[426819532,1782894631000,-150.0,0.00017921,2]
[426819531,1782894631000,-185.0751241,0.00017899,2]
[426819530,1782894631000,-428.62,0.000165,2]
[426819546,1782894631000,-1000.0,0.00018,2]
[426819535,1782894631000,-152.0,0.00017999,2]
[426819549,1782894631000,-1000.0,0.00018,2]
[426819552,1782894631000,-1000.0,0.00018,2]
[426819550,1782894631000,-1000.0,0.00018,2]
[426819548,1782894631000,-1000.0,0.00018,2]
[426819575,1782894631000,-150.0,0.00018,2]
[426819578,1782894631000,-152.0,0.00018001,2]
[426819573,1782894631000,-150.0,0.00018,2]
[426819571,1782894631000,-151.0,0.00018,2]
[426819586,1782894631000,-160.0,0.00019341,2]
[426819584,1782894631000,-151.0,0.0001804,2]
[426819583,1782894631000,-150.0,0.0001801,2]
[426819570,1782894631000,-153.0,0.00018,2]
[426819566,1782894631000,-151.0,0.00018,2]
[426819585,1782894631000,-151.0,0.0001816,2]
[426819563,1782894631000,-151.0,0.00018,2]
[426819551,1782894631000,-1000.0,0.00018,2]
[426819565,1782894631000,-151.0,0.00018,2]
[426819557,1782894631000,-150.0,0.00018,2]
[426819569,1782894631000,-150.0,0.00018,2]
[426819580,1782894631000,-151.0,0.00018002,2]
[426819561,1782894631000,-150.0,0.00018,2]
[426819559,1782894631000,-152.0,0.00018,2]
[426819568,1782894631000,-153.0,0.00018,2]
[426819567,1782894631000,-151.0,0.00018,2]
[426819592,1782894632000,-151.0,0.00021818,2]
[426819587,1782894632000,-150.0,0.00019534,2]
[426819589,1782894632000,-2337.0,0.00021763,2]
[426819588,1782894632000,-502.0,0.00020712,2]
[426819596,1782894632000,-153.0,0.00021818,2]
[426819590,1782894632000,-616.91708034,0.00021818,2]
[426819597,1782894632000,-151.0,0.00021818,2]
[426819601,1782894632000,-273.84430536,0.00021898,2]
[426819591,1782894632000,-150.0,0.00021818,2]
[426819593,1782894632000,-150.0,0.00021818,2]
[426819594,1782894632000,-150.0,0.00021818,2]
[426819598,1782894632000,-1056.27140824,0.00021848,2]
[426819600,1782894632000,-1482.09225539,0.00021898,2]
[426819599,1782894632000,-624.6391689,0.00021898,2]
[426819595,1782894632000,-151.0,0.00021818,2]
[426819608,1782894637000,-1408.56697222,0.00018372,2]
[426819609,1782894637000,-1701.78673056,0.00021372,2]
[426819607,1782894637000,-2242.43302778,0.00018372,2]
[426819658,1782894639000,-1945.33690221,0.00021898,2]
[426819657,1782894639000,-330.49920256,0.00021372,2]
[426819655,1782894639000,-1318.71406688,0.00021372,2]
[426819656,1782894639000,-300.0,0.00021372,2]
[426819679,1782894648000,50000.0,0.00030137,30]
[426819696,1782894649000,-200.0,0.00022286,2]
[426819698,1782894649000,-1148.92651678,0.00022464,2]
[426819683,1782894649000,-1315.50337914,0.00021898,2]
[426819684,1782894649000,-157.64423932,0.00021917,2]
[426819686,1782894649000,-711.75931952,0.00021918,2]
[426819688,1782894649000,-293.67318987,0.00021918,2]
[426819687,1782894649000,-298.0789722,0.00021918,2]
[426819689,1782894649000,-600.43,0.00021918,2]
[426819685,1782894649000,-399.73824694,0.00021917,2]
[426819690,1782894649000,-1219.89093319,0.00021918,2]
[426819693,1782894649000,-200.0,0.00021918,2]
[426819694,1782894649000,-200.0,0.00021918,2]
[426819692,1782894649000,-844.7932119,0.00021918,2]
[426819695,1782894649000,-2337.0,0.00022285,2]
[426819697,1782894649000,-65.51473261,0.00022464,2]
[426819691,1782894649000,-1031.37437332,0.00021918,2]
[426819726,1782894650000,-168.03066191,0.00023424,2]
[426819721,1782894650000,-306.13468226,0.00023424,2]
[426819716,1782894650000,-152.53741082,0.00023423,2]
[426819713,1782894650000,-185.95675399,0.00023423,2]
[426819723,1782894650000,-167.4155498,0.00023424,2]
[426819720,1782894650000,-163.16493465,0.00023424,2]
[426819728,1782894650000,-225.01661834,0.00023424,2]
[426819714,1782894650000,-166.32614468,0.00023423,2]
[426819739,1782894650000,-151.0,0.00023449,2]
[426819740,1782894650000,-151.0,0.00023449,2]
[426819738,1782894650000,-151.0,0.00023449,2]
[426819715,1782894650000,-177.63189835,0.00023423,2]
[426819725,1782894650000,-257.17237293,0.00023424,2]
[426819717,1782894650000,-947.18361103,0.00023424,2]
[426819707,1782894650000,-164.34011121,0.00023423,2]
[426819719,1782894650000,-153.78045538,0.00023424,2]
[426819699,1782894650000,-424.3069294,0.00022464,2]
[426819700,1782894650000,-698.25182121,0.00022464,2]
[426819701,1782894650000,-200.0,0.00023026,2]
[426819703,1782894650000,-160.0,0.00023076,2]
[426819704,1782894650000,-1109.688,0.00023338,3]